[Event "Late-Titled-Tuesday-Blitz-February-06-2024"]
[Site "Chess.com"]
[Date "2024.02.06"]
[Round "7"]
[White "CFalcons8"]
[Black "falzehope0"]
[Result "0-1"]
[WhiteElo "2360"]
[BlackElo "2349"]
[TimeControl "180+1"]
[EndTime "15:18:11 PST"]
[Termination "falzehope0 won on time"]

1. Nf3 {[%clk 0:02:51.5]} 1... d5 {[%clk 0:02:59]} 2. d4 {[%clk 0:02:52.4]} 2...
e6 {[%clk 0:02:59.3]} 3. c4 {[%clk 0:02:44.3]} 3... c6 {[%clk 0:02:59]} 4. g3
{[%clk 0:02:42.8]} 4... Bd6 {[%clk 0:02:59]} 5. Bg2 {[%clk 0:02:42.1]} 5... f5
{[%clk 0:02:58.2]} 6. b3 {[%clk 0:02:41.9]} 6... Nf6 {[%clk 0:02:57.2]} 7. Bb2
{[%clk 0:02:39.5]} 7... O-O {[%clk 0:02:56.8]} 8. Nbd2 {[%clk 0:02:37.6]} 8...
Nbd7 {[%clk 0:02:55.5]} 9. O-O {[%clk 0:02:38]} 9... f4 {[%clk 0:02:55.4]} 10.
Ne5 {[%clk 0:02:34.4]} 10... fxg3 {[%clk 0:02:53.2]} 11. hxg3 {[%clk 0:02:33.8]}
11... Bxe5 {[%clk 0:02:53]} 12. dxe5 {[%clk 0:02:34.7]} 12... Ng4 {[%clk
0:02:50.8]} 13. e4 {[%clk 0:02:32.4]} 13... Qg5 {[%clk 0:02:47.3]} 14. Bh3
{[%clk 0:02:19]} 14... Ndxe5 {[%clk 0:01:52]} 15. f4 {[%clk 0:02:17.5]} 15...
Qh5 {[%clk 0:01:51.6]} 16. Bxg4 {[%clk 0:01:53.3]} 16... Nxg4 {[%clk 0:01:50]}
17. Qe2 {[%clk 0:01:50]} 17... Qh3 {[%clk 0:01:45.7]} 18. Rf3 {[%clk 0:01:49.6]}
18... b6 {[%clk 0:01:35.9]} 19. cxd5 {[%clk 0:01:42.2]} 19... exd5 {[%clk
0:01:27.1]} 20. exd5 {[%clk 0:01:36.7]} 20... cxd5 {[%clk 0:01:19]} 21. Qg2
{[%clk 0:01:36.4]} 21... Qh5 {[%clk 0:01:16.6]} 22. Bd4 {[%clk 0:01:24.1]} 22...
Ba6 {[%clk 0:01:11.6]} 23. Rc3 {[%clk 0:01:20.2]} 23... Rae8 {[%clk 0:01:09.8]}
24. Rc7 {[%clk 0:00:59.3]} 24... Rf7 {[%clk 0:01:02.9]} 25. Rxf7 {[%clk
0:00:53.1]} 25... Kxf7 {[%clk 0:01:01.4]} 26. Nf3 {[%clk 0:00:53.2]} 26... Re2
{[%clk 0:00:58.8]} 27. Ng5+ {[%clk 0:00:53.1]} 27... Ke8 {[%clk 0:00:47.9]} 28.
Qh3 {[%clk 0:00:43.1]} 28... Qxh3 {[%clk 0:00:42]} 29. Nxh3 {[%clk 0:00:44]}
29... Nh2 {[%clk 0:00:35.6]} 30. Bf2 {[%clk 0:00:26.6]} 30... Nf3+ {[%clk
0:00:24.6]} 31. Kg2 {[%clk 0:00:25.8]} 31... Nd2 {[%clk 0:00:24.1]} 32. Ng1
{[%clk 0:00:23.4]} 32... Re6 {[%clk 0:00:17.8]} 33. Rd1 {[%clk 0:00:22.8]} 33...
Ne4 {[%clk 0:00:17.7]} 34. Rxd5 {[%clk 0:00:19.2]} 34... Bb7 {[%clk 0:00:17.9]}
35. Re5 {[%clk 0:00:19.1]} 35... Rxe5 {[%clk 0:00:09.2]} 36. fxe5 {[%clk
0:00:20]} 36... Ng5+ {[%clk 0:00:09]} 37. Kf1 {[%clk 0:00:19.6]} 37... Nf7
{[%clk 0:00:09.5]} 38. Bd4 {[%clk 0:00:11.8]} 38... g6 {[%clk 0:00:09.4]} 39.
Ne2 {[%clk 0:00:11.7]} 39... Ke7 {[%clk 0:00:09.9]} 40. Nf4 {[%clk 0:00:12.1]}
40... Nd8 {[%clk 0:00:09.2]} 41. Ke2 {[%clk 0:00:05.6]} 41... Ne6 {[%clk
0:00:08.9]} 42. Nxe6 {[%clk 0:00:01.4]} 42... Kxe6 {[%clk 0:00:09.8]} 43. Ke3
{[%clk 0:00:02.2]} 43... Kf5 {[%clk 0:00:09.7]} 0-1

[Event "Late-Titled-Tuesday-Blitz-February-06-2024"]
[Site "Chess.com"]
[Date "2024.02.06"]
[Round "7"]
[White "Alex_Sahakyan2006"]
[Black "hakanazeri2"]
[Result "1-0"]
[WhiteElo "2883"]
[BlackElo "2634"]
[TimeControl "180+1"]
[EndTime "15:18:12 PST"]
[Termination "Alex_Sahakyan2006 won on time"]

1. e4 {[%clk 0:03:00.9]} 1... c5 {[%clk 0:02:57.6]} 2. Nc3 {[%clk 0:02:58.4]}
2... e6 {[%clk 0:02:57.1]} 3. Nf3 {[%clk 0:02:58.4]} 3... Nc6 {[%clk 0:02:56.1]}
4. Bb5 {[%clk 0:02:58.4]} 4... Nge7 {[%clk 0:02:51.2]} 5. O-O {[%clk 0:02:58.2]}
5... a6 {[%clk 0:02:51.7]} 6. Bxc6 {[%clk 0:02:58.5]} 6... Nxc6 {[%clk
0:02:52.6]} 7. d4 {[%clk 0:02:59.1]} 7... cxd4 {[%clk 0:02:53.3]} 8. Nxd4 {[%clk
0:03:00]} 8... Qc7 {[%clk 0:02:54.1]} 9. Re1 {[%clk 0:02:49.4]} 9... Bd6 {[%clk
0:02:52.3]} 10. Nxc6 {[%clk 0:02:39.2]} 10... dxc6 {[%clk 0:02:45.9]} 11. Qh5
{[%clk 0:02:36.3]} 11... O-O {[%clk 0:02:41.2]} 12. e5 {[%clk 0:02:34.6]} 12...
Be7 {[%clk 0:02:32.8]} 13. Ne4 {[%clk 0:02:21.8]} 13... g6 {[%clk 0:02:27.2]}
14. Qf3 {[%clk 0:01:34.4]} 14... Qxe5 {[%clk 0:02:20.1]} 15. Bh6 {[%clk
0:01:31.1]} 15... Re8 {[%clk 0:01:45.7]} 16. Rad1 {[%clk 0:01:29.3]} 16... Qf5
{[%clk 0:01:45.4]} 17. Qxf5 {[%clk 0:00:58.4]} 17... gxf5 {[%clk 0:01:46.3]} 18.
Nd6 {[%clk 0:00:44.5]} 18... Rd8 {[%clk 0:01:17.8]} 19. Nxf5 {[%clk 0:00:39.6]}
19... Bf6 {[%clk 0:01:17.1]} 20. Rxd8+ {[%clk 0:00:34.1]} 20... Bxd8 {[%clk
0:01:18]} 21. Rd1 {[%clk 0:00:31.6]} 21... Bf6 {[%clk 0:01:12.4]} 22. Ng7 {[%clk
0:00:29.6]} 22... e5 {[%clk 0:00:50.4]} 23. h3 {[%clk 0:00:18]} 23... Bg4 {[%clk
0:00:09.7]} 24. hxg4 {[%clk 0:00:18.9]} 24... Bxg7 {[%clk 0:00:10.1]} 25. Be3
{[%clk 0:00:19.5]} 25... e4 {[%clk 0:00:07.2]} 26. c3 {[%clk 0:00:19.4]} 26...
b5 {[%clk 0:00:04]} 27. Rd7 {[%clk 0:00:17.5]} 27... a5 {[%clk 0:00:04.6]} 28.
Rc7 {[%clk 0:00:16.6]} 28... b4 {[%clk 0:00:03.8]} 29. Rxc6 {[%clk 0:00:16.3]}
29... bxc3 {[%clk 0:00:01.9]} 30. bxc3 {[%clk 0:00:17.2]} 30... Rb8 {[%clk
0:00:02.7]} 31. c4 {[%clk 0:00:16.1]} 31... Be5 {[%clk 0:00:02.8]} 32. g3 {[%clk
0:00:16.2]} 32... Rb1+ {[%clk 0:00:02.9]} 33. Kg2 {[%clk 0:00:16.5]} 33... Rb2
{[%clk 0:00:03.7]} 34. Bh6 {[%clk 0:00:16.1]} 34... f6 {[%clk 0:00:04]} 35. Be3
{[%clk 0:00:13.8]} 35... Rxa2 {[%clk 0:00:03.8]} 36. c5 {[%clk 0:00:11.1]} 36...
Rc2 {[%clk 0:00:03.7]} 37. Ra6 {[%clk 0:00:11.5]} 37... Bc3 {[%clk 0:00:02.5]}
38. c6 {[%clk 0:00:10]} 38... Be5 {[%clk 0:00:03.1]} 39. g5 {[%clk 0:00:09.2]}
39... Kf7 {[%clk 0:00:02.6]} 40. gxf6 {[%clk 0:00:08.8]} 40... Kxf6 {[%clk
0:00:03.2]} 41. c7+ {[%clk 0:00:04.6]} 41... Kf5 {[%clk 0:00:02.3]} 42. Rxa5
{[%clk 0:00:05]} 42... Rxc7 {[%clk 0:00:02.5]} 43. Rxe5+ {[%clk 0:00:05.5]}
43... Kxe5 {[%clk 0:00:02.2]} 44. Bf4+ {[%clk 0:00:06.4]} 1-0

[Event "Late-Titled-Tuesday-Blitz-February-06-2024"]
[Site "Chess.com"]
[Date "2024.02.06"]
[Round "7"]
[White "BogdanDeac"]
[Black "DenLaz"]
[Result "1/2-1/2"]
[WhiteElo "3008"]
[BlackElo "3057"]
[TimeControl "180+1"]
[EndTime "15:18:13 PST"]
[Termination "Game drawn by repetition"]

1. d4 {[%clk 0:03:00.9]} 1... Nf6 {[%clk 0:03:00.1]} 2. c4 {[%clk 0:03:00.7]}
2... e6 {[%clk 0:03:00.7]} 3. Nf3 {[%clk 0:03:01.2]} 3... d5 {[%clk 0:03:00.7]}
4. g3 {[%clk 0:03:01.8]} 4... Bb4+ {[%clk 0:02:59.7]} 5. Bd2 {[%clk 0:03:00]}
5... Be7 {[%clk 0:02:59.8]} 6. Bg2 {[%clk 0:02:59.9]} 6... O-O {[%clk
0:03:00.3]} 7. Qc2 {[%clk 0:03:00.2]} 7... Nbd7 {[%clk 0:02:58.1]} 8. O-O {[%clk
0:03:00.2]} 8... c6 {[%clk 0:02:52.6]} 9. Rd1 {[%clk 0:02:46.9]} 9... a5 {[%clk
0:02:51.2]} 10. Bf4 {[%clk 0:02:43.5]} 10... h6 {[%clk 0:02:51.2]} 11. a3 {[%clk
0:02:39.1]} 11... b6 {[%clk 0:02:39.1]} 12. Ne5 {[%clk 0:02:10.6]} 12... Bb7
{[%clk 0:02:39]} 13. cxd5 {[%clk 0:02:10.3]} 13... cxd5 {[%clk 0:02:39.2]} 14.
Nc6 {[%clk 0:02:08.7]} 14... Qe8 {[%clk 0:02:38.1]} 15. Nxe7+ {[%clk 0:01:55.8]}
15... Qxe7 {[%clk 0:02:39]} 16. Nc3 {[%clk 0:01:55.7]} 16... Rfc8 {[%clk
0:02:39.3]} 17. Qd2 {[%clk 0:01:33.9]} 17... Ne4 {[%clk 0:02:14]} 18. Nxe4
{[%clk 0:01:32.9]} 18... dxe4 {[%clk 0:01:55.3]} 19. Rac1 {[%clk 0:01:27.3]}
19... Nf6 {[%clk 0:01:47.1]} 20. Be5 {[%clk 0:01:22.5]} 20... Nd7 {[%clk
0:01:44.9]} 21. Rxc8+ {[%clk 0:00:38.1]} 21... Rxc8 {[%clk 0:01:44]} 22. Rc1
{[%clk 0:00:36.1]} 22... Qd8 {[%clk 0:01:14.3]} 23. Bf4 {[%clk 0:00:28.5]} 23...
f5 {[%clk 0:01:11.4]} 24. h4 {[%clk 0:00:23.7]} 24... Nf6 {[%clk 0:01:03.2]} 25.
e3 {[%clk 0:00:18.6]} 25... Ba6 {[%clk 0:01:02.5]} 26. Bh3 {[%clk 0:00:07]}
26... Nd5 {[%clk 0:01:01.3]} 27. Be5 {[%clk 0:00:04.1]} 27... h5 {[%clk
0:00:50.3]} 28. Qd1 {[%clk 0:00:03.6]} 28... g6 {[%clk 0:00:50.3]} 29. Bf1
{[%clk 0:00:03.7]} 29... Bxf1 {[%clk 0:00:44.8]} 30. Qxf1 {[%clk 0:00:04.6]}
30... Kf7 {[%clk 0:00:40.9]} 31. Rxc8 {[%clk 0:00:03.3]} 31... Qxc8 {[%clk
0:00:41.8]} 32. Qb5 {[%clk 0:00:03.8]} 32... Ke7 {[%clk 0:00:42.3]} 33. Kg2
{[%clk 0:00:02.6]} 33... Qc2 {[%clk 0:00:41.4]} 34. Kg1 {[%clk 0:00:02.6]} 34...
Qc8 {[%clk 0:00:31]} 35. Kg2 {[%clk 0:00:02.6]} 35... Kd8 {[%clk 0:00:17.9]} 36.
Kg1 {[%clk 0:00:02.1]} 36... Qb7 {[%clk 0:00:15.9]} 37. Kg2 {[%clk 0:00:02.1]}
37... Ke7 {[%clk 0:00:14.1]} 38. Bf4 {[%clk 0:00:02.3]} 38... Qd7 {[%clk
0:00:13.1]} 39. Qa6 {[%clk 0:00:02.3]} 39... Kf7 {[%clk 0:00:12.4]} 40. Qa8
{[%clk 0:00:02.1]} 40... Qe8 {[%clk 0:00:08.3]} 41. Qb7+ {[%clk 0:00:02.1]}
41... Qe7 {[%clk 0:00:09]} 42. Qc8 {[%clk 0:00:02.4]} 42... Qe8 {[%clk
0:00:09.6]} 43. Qb7+ {[%clk 0:00:02.7]} 43... Qe7 {[%clk 0:00:10.2]} 44. Qb8
{[%clk 0:00:03.2]} 44... Qe8 {[%clk 0:00:10.4]} 45. Qb7+ {[%clk 0:00:03.7]}
1/2-1/2

[Event "Late-Titled-Tuesday-Blitz-February-06-2024"]
[Site "Chess.com"]
[Date "2024.02.06"]
[Round "7"]
[White "PawnEatingZombie"]
[Black "Fh2411"]
[Result "0-1"]
[WhiteElo "2209"]
[BlackElo "2599"]
[TimeControl "180+1"]
[EndTime "15:18:13 PST"]
[Termination "Fh2411 won on time"]

1. e4 {[%clk 0:03:00.9]} 1... c6 {[%clk 0:02:59.5]} 2. Nf3 {[%clk 0:03:00]} 2...
d5 {[%clk 0:03:00.1]} 3. d3 {[%clk 0:03:00.5]} 3... Bg4 {[%clk 0:02:57.9]} 4. h3
{[%clk 0:02:59.9]} 4... Bh5 {[%clk 0:02:58.3]} 5. g4 {[%clk 0:02:47]} 5... Bg6
{[%clk 0:02:58.3]} 6. e5 {[%clk 0:02:37.5]} 6... e6 {[%clk 0:02:49.1]} 7. h4
{[%clk 0:02:32.8]} 7... h5 {[%clk 0:02:46.7]} 8. g5 {[%clk 0:02:26.9]} 8... c5
{[%clk 0:02:36.8]} 9. Be2 {[%clk 0:02:18.1]} 9... Ne7 {[%clk 0:02:33.9]} 10. Ng1
{[%clk 0:02:02.5]} 10... Nbc6 {[%clk 0:02:12.4]} 11. f4 {[%clk 0:02:02.2]} 11...
Nf5 {[%clk 0:01:57.9]} 12. Bf3 {[%clk 0:02:02]} 12... Rc8 {[%clk 0:01:20.2]} 13.
Ne2 {[%clk 0:02:01.3]} 13... Qb6 {[%clk 0:01:18]} 14. c3 {[%clk 0:01:52.4]}
14... Qa6 {[%clk 0:01:15.3]} 15. Kf2 {[%clk 0:01:29]} 15... Nfe7 {[%clk
0:01:09.5]} 16. Ng3 {[%clk 0:01:19.2]} 16... Qxd3 {[%clk 0:00:40.1]} 17. Qxd3
{[%clk 0:01:17.3]} 17... Bxd3 {[%clk 0:00:41]} 18. Nxh5 {[%clk 0:01:15.4]} 18...
Nf5 {[%clk 0:00:38.9]} 19. Nd2 {[%clk 0:01:03]} 19... c4 {[%clk 0:00:28]} 20.
Nf1 {[%clk 0:01:02.7]} 20... Bc5+ {[%clk 0:00:27.3]} 21. Kg2 {[%clk 0:00:57]}
21... Bxf1+ {[%clk 0:00:18.5]} 22. Kxf1 {[%clk 0:00:52.5]} 22... Rxh5 {[%clk
0:00:17.3]} 23. Bxh5 {[%clk 0:00:47.4]} 23... Ng3+ {[%clk 0:00:17.8]} 24. Kg2
{[%clk 0:00:47.7]} 24... Nxh5 {[%clk 0:00:18.7]} 25. Kf3 {[%clk 0:00:38.4]}
25... g6 {[%clk 0:00:19.1]} 26. Be3 {[%clk 0:00:36.7]} 26... Ne7 {[%clk
0:00:18.4]} 27. Bxc5 {[%clk 0:00:34.2]} 27... Rxc5 {[%clk 0:00:19.3]} 28. Rhc1
{[%clk 0:00:22]} 28... Nf5 {[%clk 0:00:19.1]} 29. b3 {[%clk 0:00:21.3]} 29...
Nxh4+ {[%clk 0:00:18.4]} 30. Kg4 {[%clk 0:00:21]} 30... Nf5 {[%clk 0:00:18.3]}
31. bxc4 {[%clk 0:00:21.1]} 31... Rxc4 {[%clk 0:00:18.7]} 32. Rab1 {[%clk
0:00:19.2]} 32... Rxf4+ {[%clk 0:00:18.7]} 33. Kh3 {[%clk 0:00:19.3]} 33... b6
{[%clk 0:00:18.8]} 34. c4 {[%clk 0:00:17.4]} 34... dxc4 {[%clk 0:00:13.6]} 35.
Rb4 {[%clk 0:00:12.7]} 35... Ne3 {[%clk 0:00:13.4]} 36. a4 {[%clk 0:00:09.8]}
36... Re4 {[%clk 0:00:08.7]} 37. a5 {[%clk 0:00:09.4]} 37... bxa5 {[%clk
0:00:08.8]} 38. Rb8+ {[%clk 0:00:08.6]} 38... Ke7 {[%clk 0:00:08.6]} 39. Rcb1
{[%clk 0:00:06.9]} 39... Rd4 {[%clk 0:00:09]} 40. R1b7+ {[%clk 0:00:06.6]} 40...
Rd7 {[%clk 0:00:09.7]} 41. Rxd7+ {[%clk 0:00:07]} 41... Kxd7 {[%clk 0:00:10.6]}
42. Rb7+ {[%clk 0:00:07.5]} 42... Kc6 {[%clk 0:00:11.1]} 43. Rxa7 {[%clk
0:00:07.1]} 43... Kb5 {[%clk 0:00:10]} 44. Rxf7 {[%clk 0:00:06.5]} 44... c3
{[%clk 0:00:10.4]} 45. Rc7 {[%clk 0:00:05.3]} 45... Nc4 {[%clk 0:00:11]} 46.
Rb7+ {[%clk 0:00:03.5]} 46... Ka4 {[%clk 0:00:11.3]} 47. Kg4 {[%clk 0:00:01]}
47... c2 {[%clk 0:00:10.9]} 0-1

[Event "Late-Titled-Tuesday-Blitz-February-06-2024"]
[Site "Chess.com"]
[Date "2024.02.06"]
[Round "7"]
[White "BebeBonito2022"]
[Black "cande_francisco"]
[Result "0-1"]
[WhiteElo "2325"]
[BlackElo "2534"]
[TimeControl "180+1"]
[EndTime "15:18:19 PST"]
[Termination "cande_francisco won on time"]

1. d4 {[%clk 0:03:00.9]} 1... Nf6 {[%clk 0:02:59.4]} 2. c4 {[%clk 0:03:01.1]}
2... c5 {[%clk 0:02:59.3]} 3. d5 {[%clk 0:03:00.9]} 3... e6 {[%clk 0:03:00]} 4.
Nc3 {[%clk 0:03:00.7]} 4... exd5 {[%clk 0:03:00.7]} 5. cxd5 {[%clk 0:03:01.6]}
5... d6 {[%clk 0:03:01.4]} 6. e4 {[%clk 0:03:02.1]} 6... g6 {[%clk 0:03:01.8]}
7. f4 {[%clk 0:03:02.4]} 7... Bg7 {[%clk 0:03:01]} 8. Bb5+ {[%clk 0:03:02.6]}
8... Nfd7 {[%clk 0:03:01.2]} 9. a4 {[%clk 0:03:02.9]} 9... O-O {[%clk
0:03:00.9]} 10. Nf3 {[%clk 0:03:03.2]} 10... Na6 {[%clk 0:03:01.6]} 11. O-O
{[%clk 0:03:03.2]} 11... Nb4 {[%clk 0:03:02.3]} 12. Re1 {[%clk 0:03:01.6]} 12...
a6 {[%clk 0:02:56]} 13. Bf1 {[%clk 0:03:01.5]} 13... Re8 {[%clk 0:02:56.1]} 14.
h3 {[%clk 0:03:01.6]} 14... f5 {[%clk 0:02:40.2]} 15. Ng5 {[%clk 0:02:36.6]}
15... Nf8 {[%clk 0:02:34.8]} 16. Bc4 {[%clk 0:02:14.8]} 16... fxe4 {[%clk
0:02:12.3]} 17. Ngxe4 {[%clk 0:01:50.6]} 17... Bf5 {[%clk 0:02:09.3]} 18. g4
{[%clk 0:01:32.7]} 18... Bxe4 {[%clk 0:00:39.3]} 19. Rxe4 {[%clk 0:01:20.5]}
19... Qh4 {[%clk 0:00:27.4]} 20. Qf3 {[%clk 0:01:02.9]} 20... Bxc3 {[%clk
0:00:17.2]} 21. bxc3 {[%clk 0:00:58.3]} 21... Rxe4 {[%clk 0:00:17.4]} 22. Qxe4
{[%clk 0:00:56]} 22... Qg3+ {[%clk 0:00:17.8]} 23. Kh1 {[%clk 0:00:11.1]} 23...
Qxh3+ {[%clk 0:00:16.9]} 24. Kg1 {[%clk 0:00:10.8]} 24... Qxc3 {[%clk
0:00:13.3]} 25. Rb1 {[%clk 0:00:10.9]} 25... Qg3+ {[%clk 0:00:08.5]} 26. Kh1
{[%clk 0:00:10.4]} 26... Qh3+ {[%clk 0:00:07.8]} 27. Kg1 {[%clk 0:00:10.4]}
27... Qxg4+ {[%clk 0:00:08.7]} 28. Kf2 {[%clk 0:00:10.6]} 28... Qh4+ {[%clk
0:00:08.1]} 29. Kg2 {[%clk 0:00:10.7]} 29... Qg4+ {[%clk 0:00:08.1]} 30. Kf2
{[%clk 0:00:11.1]} 30... Qd7 {[%clk 0:00:07.6]} 31. Bb2 {[%clk 0:00:11.1]} 31...
Re8 {[%clk 0:00:07.8]} 32. Qf3 {[%clk 0:00:11.8]} 32... Re7 {[%clk 0:00:02.9]}
33. Rg1 {[%clk 0:00:11.9]} 33... Kf7 {[%clk 0:00:03.3]} 34. f5 {[%clk
0:00:12.2]} 34... Ke8 {[%clk 0:00:04.2]} 35. f6 {[%clk 0:00:11.9]} 35... Rf7
{[%clk 0:00:03.1]} 36. Re1+ {[%clk 0:00:10.9]} 36... Kd8 {[%clk 0:00:04]} 37.
Qe4 {[%clk 0:00:08.8]} 37... b5 {[%clk 0:00:03.2]} 38. axb5 {[%clk 0:00:08]}
38... axb5 {[%clk 0:00:04.1]} 39. Qe7+ {[%clk 0:00:06.9]} 39... Rxe7 {[%clk
0:00:03.8]} 40. fxe7+ {[%clk 0:00:07.4]} 40... Ke8 {[%clk 0:00:02.9]} 41.
exf8=Q+ {[%clk 0:00:07]} 41... Kxf8 {[%clk 0:00:03.8]} 42. Bb3 {[%clk
0:00:06.4]} 42... Qf5+ {[%clk 0:00:04.3]} 43. Kg1 {[%clk 0:00:06.2]} 43... Qg4+
{[%clk 0:00:04.5]} 44. Kf2 {[%clk 0:00:04.9]} 44... Nd3+ {[%clk 0:00:04]} 45.
Ke3 {[%clk 0:00:03.2]} 45... Nxe1 {[%clk 0:00:04.9]} 0-1

[Event "Late-Titled-Tuesday-Blitz-February-06-2024"]
[Site "Chess.com"]
[Date "2024.02.06"]
[Round "7"]
[White "pr1105"]
[Black "HalfIsCrayfish"]
[Result "0-1"]
[WhiteElo "2422"]
[BlackElo "2585"]
[TimeControl "180+1"]
[EndTime "15:18:24 PST"]
[Termination "HalfIsCrayfish won by checkmate"]

1. e4 {[%clk 0:03:00.9]} 1... Nc6 {[%clk 0:02:59]} 2. Nf3 {[%clk 0:03:00]} 2...
f5 {[%clk 0:02:57.7]} 3. exf5 {[%clk 0:02:59.9]} 3... d5 {[%clk 0:02:58.1]} 4.
Bb5 {[%clk 0:02:59.8]} 4... Bxf5 {[%clk 0:02:58.4]} 5. d4 {[%clk 0:02:56.6]}
5... Qd6 {[%clk 0:02:58.4]} 6. O-O {[%clk 0:02:47]} 6... O-O-O {[%clk
0:02:49.9]} 7. Nbd2 {[%clk 0:02:19.7]} 7... h6 {[%clk 0:02:43.9]} 8. Bxc6 {[%clk
0:02:13.5]} 8... Qxc6 {[%clk 0:02:43.7]} 9. Ne5 {[%clk 0:02:14.4]} 9... Qe8
{[%clk 0:02:43.8]} 10. c4 {[%clk 0:01:52.3]} 10... Nf6 {[%clk 0:02:35.3]} 11. c5
{[%clk 0:01:47.4]} 11... e6 {[%clk 0:02:33.3]} 12. b4 {[%clk 0:01:45.5]} 12...
g5 {[%clk 0:02:29.5]} 13. a4 {[%clk 0:01:45.1]} 13... Nd7 {[%clk 0:02:28.1]} 14.
Nxd7 {[%clk 0:01:32.2]} 14... Qxd7 {[%clk 0:02:25.3]} 15. Re1 {[%clk 0:01:25]}
15... Bg7 {[%clk 0:02:24.5]} 16. Nf3 {[%clk 0:01:24.7]} 16... Be4 {[%clk
0:02:23.6]} 17. Ne5 {[%clk 0:01:20.3]} 17... Bxe5 {[%clk 0:02:22.9]} 18. dxe5
{[%clk 0:01:21.2]} 18... Rhf8 {[%clk 0:02:21.2]} 19. b5 {[%clk 0:01:18.5]} 19...
c6 {[%clk 0:02:11.6]} 20. Be3 {[%clk 0:01:06.5]} 20... d4 {[%clk 0:01:58.6]} 21.
Bd2 {[%clk 0:00:35.9]} 21... Qd5 {[%clk 0:01:58]} 22. f3 {[%clk 0:00:35.1]}
22... Bf5 {[%clk 0:01:46.9]} 23. Bb4 {[%clk 0:00:35.2]} 23... h5 {[%clk
0:01:41.1]} 24. Qd2 {[%clk 0:00:35.3]} 24... g4 {[%clk 0:01:41]} 25. f4 {[%clk
0:00:32.8]} 25... Be4 {[%clk 0:01:40.3]} 26. a5 {[%clk 0:00:29.3]} 26... a6
{[%clk 0:01:19.1]} 27. bxa6 {[%clk 0:00:29.5]} 27... bxa6 {[%clk 0:01:19.4]} 28.
Qe2 {[%clk 0:00:28.6]} 28... d3 {[%clk 0:01:19.2]} 29. Qxe4 {[%clk 0:00:28.5]}
29... d2 {[%clk 0:01:13.9]} 30. Bxd2 {[%clk 0:00:19.3]} 30... Qxe4 {[%clk
0:01:10.6]} 31. Rxe4 {[%clk 0:00:20.2]} 31... Rxd2 {[%clk 0:01:10.8]} 32. Rb1
{[%clk 0:00:17.6]} 32... h4 {[%clk 0:01:03.2]} 33. Reb4 {[%clk 0:00:17.1]} 33...
Kd7 {[%clk 0:00:39.8]} 34. Rb7+ {[%clk 0:00:17.1]} 34... Ke8 {[%clk 0:00:40.1]}
35. Rb8+ {[%clk 0:00:17.8]} 35... Kf7 {[%clk 0:00:40.7]} 36. R1b7+ {[%clk
0:00:18.4]} 36... Kg8 {[%clk 0:00:41.2]} 37. Rxf8+ {[%clk 0:00:18.3]} 37... Kxf8
{[%clk 0:00:42.1]} 38. Ra7 {[%clk 0:00:17.2]} 38... g3 {[%clk 0:00:42.2]} 39.
hxg3 {[%clk 0:00:16.6]} 39... hxg3 {[%clk 0:00:43.1]} 40. Kf1 {[%clk 0:00:17]}
40... Rf2+ {[%clk 0:00:43.6]} 41. Ke1 {[%clk 0:00:15.6]} 41... Rxg2 {[%clk
0:00:43.9]} 42. Rxa6 {[%clk 0:00:15.8]} 42... Ra2 {[%clk 0:00:39.3]} 43. Kf1
{[%clk 0:00:15.3]} 43... Kf7 {[%clk 0:00:39]} 44. Rxc6 {[%clk 0:00:14]} 44...
Kg6 {[%clk 0:00:36.7]} 45. Rxe6+ {[%clk 0:00:13.7]} 45... Kf5 {[%clk 0:00:37.1]}
46. Rf6+ {[%clk 0:00:12.5]} 46... Ke4 {[%clk 0:00:36.9]} 47. Rg6 {[%clk
0:00:12.5]} 47... Kf3 {[%clk 0:00:32.2]} 48. Ke1 {[%clk 0:00:12.8]} 48... Rxa5
{[%clk 0:00:25]} 49. c6 {[%clk 0:00:10.9]} 49... Kxf4 {[%clk 0:00:23.1]} 50. c7
{[%clk 0:00:08.7]} 50... Rc5 {[%clk 0:00:22.3]} 51. e6 {[%clk 0:00:09]} 51...
Rxc7 {[%clk 0:00:22.2]} 52. Kf1 {[%clk 0:00:09.4]} 52... Kf3 {[%clk 0:00:20]}
53. Rf6+ {[%clk 0:00:09.6]} 53... Kg4 {[%clk 0:00:20.6]} 54. Rg6+ {[%clk
0:00:09.4]} 54... Kf4 {[%clk 0:00:20.3]} 55. Rf6+ {[%clk 0:00:08.8]} 55... Kg5
{[%clk 0:00:20.8]} 56. Rf3 {[%clk 0:00:08.7]} 56... Kg4 {[%clk 0:00:19.9]} 57.
Re3 {[%clk 0:00:09.3]} 57... Rc1+ {[%clk 0:00:16.1]} 58. Kg2 {[%clk 0:00:08.6]}
58... Rc2+ {[%clk 0:00:16.4]} 59. Kg1 {[%clk 0:00:09.1]} 59... Kh3 {[%clk
0:00:16.3]} 60. e7 {[%clk 0:00:09]} 60... Rc1+ {[%clk 0:00:16.2]} 61. Re1 {[%clk
0:00:09.7]} 61... Rxe1# {[%clk 0:00:17.1]} 0-1